bitfinex/quotes_SOLUSD_20220105
["timestamp","ask_amount","ask_price","bid_price","bid_amount"]
[1641387940001,2.95080542,168.18,168.13,8.56]
[1641387940205,29.67553707,168.17,168.13,8.56]
[1641387941303,29.67553707,168.17,168.13,9.06]
[1641387941503,86.87553707,168.17,168.13,9.06]
[1641387942102,86.87553707,168.17,168.13,9.32]
[1641387942304,86.87553707,168.17,168.13,9.06]
[1641387945503,86.87553707,168.17,168.13,9.32]
[1641387948309,86.87553707,168.17,168.13,0.76]
[1641387948509,86.87553707,168.17,168.13,0.5]
[1641387948808,86.87553707,168.17,168.1,9.32]
[1641387949010,111.56993707,168.17,168.1,9.32]
[1641387950011,111.56993707,168.17,168.1,9.06]
[1641387951310,111.56993707,168.17,168.1,9.32]
[1641387952211,111.56993707,168.17,168.1,10.79846154]
[1641387958022,111.56993707,168.17,168.1,9.32]
[1641387959739,111.56993707,168.17,168.1,9.06]
[1641387960146,111.56993707,168.17,168.03,1.47846154]
[1641387960147,2.91008765,168.15,168.03,1.47846154]
[1641387960345,23.7344,168.14,168.04,8.56]
[1641387960639,24.86466248,168.13,168.04,8.56]
[1641387960842,82.06466248,168.13,168.04,8.56]
[1641387961041,2.7815703,168.12,168.04,8.56]
[1641387961340,59.9815703,168.12,168.04,9.06]
[1641387962542,59.9815703,168.12,168.04,9.32]
[1641387963145,59.9815703,168.12,168.04,10.53846154]
[1641387964549,59.9815703,168.12,168.04,10.79846154]
[1641387965850,59.9815703,168.12,168.04,10.53846154]
[1641387967253,59.9815703,168.12,168.04,10.79846154]
[1641387967550,59.9815703,168.12,168.04,9.32]
[1641387976755,22.5456,168.11,168.04,9.32]
[1641387979559,79.7456,168.11,168.04,9.32]
[1641387985063,57.2,168.11,168.04,9.32]
[1641387985262,57.2,168.11,168.04,37.33516203]
[1641387985463,57.2,168.13,168.04,37.33516203]
[1641387985763,57.2,168.13,168.05,106.98]
[1641387985962,57.2,168.13,168.06,8.56]
[1641387986365,57.2,168.13,168.06,9.32]
[1641387986665,28.68670823,168.15,168.07,8.9174]
[1641387986864,28.68670823,168.15,168.08,8.56]
[1641387987063,28.68670823,168.15,168.08,10.29846154]
[1641387987264,28.68670823,168.15,168.08,10.79846154]
[1641387987464,85.88670823,168.15,168.09,1.47846154]
[1641387987664,85.88670823,168.15,168.1,8.56]
[1641387987864,85.88670823,168.15,168.1,9.06]
[1641387988065,85.88670823,168.15,168.1,9.32]
[1641387990869,85.88670823,168.15,168.1,10.79846154]
[1641387995699,85.88670823,168.15,168.1,10.53846154]
[1641387997400,85.88670823,168.15,168.1,10.79846154]
[1641388011314,85.88670823,168.15,168.1,10.53846154]
[1641388011519,85.88670823,168.15,168.1,9.06]
[1641388013817,85.88670823,168.15,168.1,9.32]
[1641388015117,85.88670823,168.15,168.1,9.06]
[1641388016619,85.88670823,168.15,168.1,0.5]
[1641388016816,22.8028,168.14,168.06,8.56]
[1641388017217,22.8028,168.14,168.06,9.06]
[1641388017417,80.0028,168.14,168.06,9.06]
[1641388019020,80.0028,168.14,168.06,9.32]
[1641388020223,80.0028,168.14,168.06,10.79846154]
[1641388023127,80.0028,168.14,168.06,10.53846154]
[1641388024629,80.0028,168.14,168.06,10.79846154]
[1641388025933,80.0028,168.14,168.06,9.06]
[1641388027253,80.0028,168.14,168.06,9.32]
[1641388027854,80.0028,168.14,168.06,9.06]
[1641388028052,80.0028,168.14,168.06,0.5]
[1641388028252,157.0846,168.14,168.06,0.5]
[1641388028454,157.0846,168.14,168.02,9.06]
[1641388029255,157.0846,168.14,168.02,9.32]
[1641388029656,157.0846,168.14,168.03,1.47846154]
[1641388029856,157.0846,168.14,168.03,1.97846154]
[1641388030054,157.0846,168.14,168.03,0.76]
[1641388030455,0.06,168.13,168.02,9.32]
[1641388030655,2.82012342,168.12,168.02,9.32]
[1641388030857,2.82012342,168.12,168.02,10.79846154]
[1641388032157,2.82012342,168.12,168.02,8.82]
[1641388032355,3.32012342,168.12,168.02,8.56]
[1641388032957,0.06,168.11,168.02,8.56]
[1641388033157,0.06,168.11,167.98,1.47846154]
[1641388033356,51.8431146,168.11,167.98,1.97846154]
[1641388033556,51.8431146,168.11,167.98,1.47846154]
[1641388033761,52.3431146,168.11,167.98,1.97846154]
[1641388034359,52.3431146,168.11,167.98,2.23846154]
[1641388036061,52.3431146,168.11,167.99,1.47846154]
[1641388036465,52.3431146,168.11,167.99,2.23846154]
[1641388037464,109.5431146,168.11,167.99,2.23846154]
[1641388041168,109.5431146,168.11,168.0,1.47846154]
[1641388041372,109.5431146,168.11,168.0,1.97846154]
[1641388041669,109.5431146,168.11,168.0,2.23846154]
[1641388041873,109.5431146,168.11,168.0,0.76]
[1641388042169,109.0431146,168.11,168.0,0.26]
[1641388042372,109.0431146,168.11,167.97,10.79846154]
[1641388043471,109.5431146,168.11,167.97,10.79846154]
[1641388045573,109.0431146,168.11,167.97,10.79846154]
[1641388048777,109.0431146,168.11,167.97,10.53846154]
[1641388050080,109.0431146,168.11,167.97,10.79846154]
[1641388051280,109.5431146,168.11,167.97,10.79846154]
[1641388051479,109.0431146,168.11,167.97,10.79846154]
[1641388051879,109.5431146,168.11,167.97,10.79846154]
[1641388052280,109.0431146,168.11,167.97,10.79846154]
[1641388064327,109.0431146,168.11,167.97,10.53846154]
[1641388065628,109.0431146,168.11,167.97,10.79846154]
[1641388068629,109.5431146,168.11,167.97,10.53846154]
[1641388069230,109.0431146,168.11,167.97,10.53846154]
[1641388069631,109.5431146,168.11,167.97,10.53846154]
[1641388069831,109.0431146,168.11,167.97,10.53846154]
[1641388070031,109.0431146,168.11,167.97,10.79846154]
[1641388071267,109.5431146,168.11,167.97,10.79846154]
[1641388071435,109.0431146,168.11,167.97,10.79846154]
[1641388073140,109.0431146,168.11,167.97,15.86316579]
[1641388073938,86.2300146,168.11,167.97,23.47827143]
[1641388074338,86.2300146,168.11,167.99,106.98]
[1641388074538,86.2300146,168.11,168.01,106.98]
[1641388074739,57.26,168.11,168.02,8.56]
[1641388074937,57.26,168.11,168.02,14.12470425]
[1641388075138,57.26,168.11,168.02,15.86316579]
[1641388075339,57.26,168.11,168.03,6.54316579]
[1641388075540,57.26,168.11,168.04,8.56]
[1641388075742,57.26,168.11,168.04,18.95766154]
[1641388075939,57.26,168.11,168.05,1.47846154]
[1641388076140,57.26,168.11,168.06,8.56]
[1641388076340,57.26,168.11,168.06,9.06]
[1641388076541,57.26,168.11,168.06,10.79846154]
[1641388080170,57.26,168.11,168.06,15.86316579]
[1641388080771,57.26,168.11,168.06,45.58206579]
[1641388081371,57.26,168.11,168.06,15.86316579]
[1641388082572,57.26,168.11,168.1,8.9159]
[1641388082872,57.26,168.11,168.1,17.9759]
[1641388083072,57.26,168.11,168.1,19.71436154]
[1641388086380,48.3448,168.11,168.1,39.79846154]
[1641388087280,45.2488,168.11,168.1,39.79846154]
[1641388087481,36.3341,168.11,168.1,152.17538801]
[1641388087881,36.4,168.11,168.1,152.17538801]
[1641388088684,27.4847,168.11,168.1,152.17538801]
[1641388088881,27.4,168.11,168.1,123.17538801]
[1641388089487,58.76173989,168.17,168.1,122.91538801]
[1641388089883,58.76173989,168.17,168.11,0.06]
[1641388090289,58.76173989,168.17,168.11,1.53846154]
[1641388090485,58.76173989,168.17,168.11,2.03846154]
[1641388090888,27.4,168.17,168.12,8.56]
[1641388091085,27.4,168.18,168.12,8.82]
[1641388091388,27.4,168.18,168.13,1.47846154]
[1641388091586,27.4,168.18,168.14,8.56]
[1641388091985,27.4,168.18,168.14,10.79846154]
[1641388092988,30.42371949,168.19,168.14,10.79846154]
[1641388093889,27.4,168.19,168.14,10.79846154]
[1641388094488,55.55175906,168.2,168.14,10.79846154]
[1641388094687,58.59607871,168.2,168.14,10.79846154]
[1641388096890,58.59607871,168.2,168.14,2.23846154]
[1641388099591,58.59607871,168.2,168.14,1.97846154]
[1641388099791,58.59607871,168.2,168.14,0.5]
[1641388099990,58.59607871,168.2,168.11,10.53846154]
[1641388101893,58.59607871,168.2,168.11,10.79846154]
[1641388106129,58.59607871,168.2,168.12,0.06]
[1641388106330,58.59607871,168.2,168.13,8.56]
[1641388106534,58.59607871,168.2,168.13,10.29846154]
[1641388106730,58.59607871,168.2,168.13,9.32]
[1641388107030,27.4,168.2,168.13,9.32]
[1641388107230,27.4,168.2,168.14,1.53846154]
[1641388107431,27.4,168.2,168.15,8.56]
[1641388107629,105.2939,168.22,168.15,10.03846154]
[1641388107828,105.2939,168.22,168.16,0.06]
[1641388108029,2.55285932,168.21,168.17,8.56]
[1641388108430,27.4,168.21,168.17,10.79846154]
[1641388108631,27.4,168.21,168.18,1.47846154]
[1641388108831,27.4,168.21,168.18,1.97846154]
[1641388109035,27.4,168.21,168.18,2.23846154]
[1641388109231,6.06439994,168.2,168.19,1.47846154]
[1641388109430,6.06439994,168.2,168.19,1.97846154]
[1641388109630,27.4,168.21,168.19,0.76]
[1641388109832,2.65963918,168.21,168.19,0.76]
[1641388110033,2.65963918,168.21,168.19,0.26]
[1641388110232,2.65963918,168.21,168.17,9.32]
[1641388110934,27.4,168.21,168.18,1.53846154]
[1641388111132,27.4,168.24,168.18,10.09846154]
[1641388111432,27.4,168.24,168.19,1.47846154]
[1641388111642,27.4,168.24,168.2,8.56]
[1641388111832,2.86620496,168.26,168.2,9.12]
[1641388112034,24.39786682,168.25,168.2,10.85846154]
[1641388112233,24.39786682,168.25,168.2,10.79846154]
[1641388112835,51.79786682,168.25,168.2,10.79846154]
[1641388113434,51.29786682,168.25,168.2,9.32]
[1641388113734,51.29786682,168.25,168.2,10.79846154]
[1641388113937,27.4,168.25,168.21,0.06]
[1641388114138,30.26620496,168.26,168.21,8.62]
[1641388114335,27.4,168.26,168.21,9.12]
[1641388114535,27.4,168.26,168.21,9.38]
[1641388114736,27.4,168.26,168.21,10.85846154]
[1641388114936,27.4,168.26,168.22,22.52253718]
[1641388115136,50.4163,168.32,168.24,0.06]
[1641388115336,52.91077413,168.32,168.25,8.56]
[1641388115537,52.91077413,168.32,168.26,0.06]
[1641388115737,52.91077413,168.32,168.27,8.56]
[1641388115938,52.91077413,168.32,168.27,9.06]
[1641388116137,52.91077413,168.32,168.27,9.32]
[1641388116739,30.6081579,168.31,168.27,9.32]
[1641388117339,30.6081579,168.31,168.27,0.5]
[1641388117537,58.0081579,168.31,168.27,0.5]
[1641388117742,58.0081579,168.31,168.23,9.06]
[1641388118140,24.0005,168.3,168.23,10.53846154]
[1641388118539,24.0005,168.3,168.23,10.79846154]
[1641388119141,24.0005,168.3,168.23,9.32]
[1641388119544,51.4005,168.3,168.23,9.32]
[1641388120846,51.4005,168.3,168.23,10.79846154]
[1641388121245,51.4005,168.3,168.23,9.32]
[1641388122245,51.4005,168.3,168.23,10.79846154]
[1641388122446,51.4005,168.3,168.23,9.32]
[1641388122849,51.4005,168.3,168.23,0.76]
[1641388123248,51.4005,168.3,168.21,0.06]
[1641388123949,51.4005,168.3,168.22,10.03846154]
[1641388124353,51.4005,168.3,168.23,1.47846154]
[1641388124550,51.4005,168.3,168.23,10.29846154]
[1641388124751,51.4005,168.3,168.23,10.79846154]
[1641388126148,51.4005,168.3,168.24,1.47846154]
[1641388126355,51.4005,168.3,168.24,10.59846154]
[1641388126549,51.4005,168.3,168.24,10.85846154]
[1641388127952,51.4005,168.3,168.25,1.47846154]
[1641388128153,27.4,168.3,168.26,8.56]
[1641388128357,27.4,168.3,168.26,9.06]
[1641388128555,29.89447413,168.32,168.26,10.79846154]
[1641388128957,29.89447413,168.32,168.27,0.06]
[1641388129155,29.89447413,168.32,168.28,8.56]
[1641388129357,29.89447413,168.32,168.28,9.06]
[1641388129559,27.4,168.32,168.28,9.32]
[1641388129955,51.6939,168.33,168.28,10.79846154]
[1641388130556,54.417805,168.33,168.28,10.79846154]
[1641388131160,54.417805,168.33,168.28,9.32]
[1641388131780,54.417805,168.33,168.28,0.76]
[1641388131980,54.417805,168.33,168.25,9.32]
[1641388132383,54.417805,168.33,168.25,9.06]
[1641388133984,54.417805,168.33,168.25,9.32]
[1641388134585,54.417805,168.33,168.25,10.79846154]
[1641388134986,54.417805,168.33,168.26,0.06]
[1641388135388,54.417805,168.33,168.26,1.53846154]
[1641388135588,54.417805,168.33,168.26,1.79846154]
[1641388135792,54.417805,168.33,168.26,2.29846154]
[1641388136488,54.417805,168.33,168.26,0.56]
[1641388136891,54.417805,168.33,168.26,0.06]
[1641388139796,54.417805,168.33,168.26,1.53846154]
[1641388139993,54.417805,168.33,168.26,2.29846154]
[1641388143295,54.417805,168.33,168.27,8.56]
[1641388143594,54.417805,168.33,168.27,8.82]
[1641388143794,54.417805,168.33,168.27,9.32]
[1641388145597,54.417805,168.33,168.27,10.79846154]
[1641388145898,85.72807147,168.33,168.27,10.79846154]
[1641388152307,85.72807147,168.33,168.27,10.53846154]
[1641388152506,85.72807147,168.33,168.27,9.06]
[1641388152707,85.72807147,168.33,168.27,0.5]
[1641388152906,85.72807147,168.33,168.24,10.53846154]
[1641388156109,85.72807147,168.33,168.24,10.79846154]
[1641388157412,54.417805,168.33,168.24,10.79846154]
[1641388158445,85.63018416,168.33,168.24,10.79846154]
[1641388160851,54.417805,168.33,168.24,19.76726154]
[1641388161051,54.417805,168.33,168.24,10.85846154]
[1641388162253,54.417805,168.33,168.25,8.9079]
[1641388162454,51.6939,168.33,168.26,8.56]
[1641388162654,51.6939,168.33,168.27,0.06]
[1641388162854,51.6939,168.33,168.28,8.56]
[1641388163058,27.4,168.33,168.28,8.82]
[1641388163254,27.4,168.33,168.29,10.44416154]
[1641388163455,2.29104277,168.4,168.31,22.90107644]
[1641388163654,2.29104277,168.4,168.32,8.56]
[1641388163856,2.29104277,168.4,168.33,0.06]
[1641388164055,29.69104277,168.4,168.33,8.62]
[1641388164254,29.69104277,168.4,168.34,1.47846154]
[1641388164454,29.69104277,168.4,168.34,1.97846154]
[1641388164655,29.69104277,168.4,168.34,2.23846154]
[1641388164855,29.69104277,168.4,168.34,9.32]
[1641388165054,29.69104277,168.4,168.35,1.47846154]
[1641388165355,29.69104277,168.4,168.35,1.97846154]
[1641388165554,29.69104277,168.4,168.35,2.23846154]
[1641388165756,29.69104277,168.4,168.36,1.47846154]
[1641388165953,29.69104277,168.4,168.36,2.23846154]
[1641388166355,29.69104277,168.4,168.37,1.47846154]
[1641388166555,3.03219997,168.39,168.37,1.73846154]
[1641388166759,3.03219997,168.39,168.37,2.23846154]
[1641388166955,27.4,168.4,168.37,2.23846154]
[1641388167457,50.4303,168.42,168.37,2.23846154]
[1641388168057,27.4,168.42,168.38,1.47846154]
[1641388168457,27.4,168.42,168.38,2.23846154]
[1641388169459,29.73330415,168.43,168.38,0.5]
[1641388169857,24.9192,168.42,168.34,0.5]
[1641388170057,29.66718052,168.41,168.34,0.5]
[1641388170256,29.66718052,168.41,168.29,8.56]
[1641388170257,57.06718052,168.41,168.29,8.56]
[1641388170457,23.7907,168.4,168.29,9.06]
[1641388170657,72.688,168.39,168.29,9.06]
[1641388173359,72.688,168.39,168.29,9.32]
[1641388173559,100.088,168.39,168.29,9.32]
[1641388175757,100.088,168.39,168.29,9.06]
[1641388176165,100.148,168.39,168.29,9.06]
[1641388177061,100.148,168.39,168.29,9.32]
[1641388178360,100.148,168.39,168.29,0.76]
[1641388178561,100.148,168.39,168.29,0.5]
[1641388178763,100.148,168.39,168.25,2.29846154]
[1641388179161,124.618,168.39,168.25,2.29846154]
[1641388179964,125.118,168.39,168.25,2.29846154]
[1641388181963,124.618,168.39,168.25,2.29846154]
[1641388183469,217.318,168.39,168.25,2.29846154]
[1641388189074,217.318,168.39,168.25,0.82]
[1641388189273,217.318,168.39,168.25,0.06]
[1641388190877,217.818,168.39,168.25,0.06]
[1641388191307,217.28151577,168.39,168.25,0.06]
[1641388193210,216.14850477,168.39,168.25,0.06]
[1641388200519,216.40850477,168.39,168.25,0.06]
[1641388200918,8.56,168.38,168.25,0.06]
[1641388201117,54.33088538,168.37,168.25,0.06]
[1641388201517,54.83088538,168.37,168.25,0.06]
[1641388202319,54.33088538,168.37,168.24,8.56]
[1641388202517,54.33088538,168.37,168.24,8.82]
[1641388202718,54.33088538,168.37,168.25,1.53846154]
[1641388202916,54.33088538,168.37,168.27,27.91190588]
[1641388203116,54.33088538,168.37,168.27,36.47190588]
[1641388203317,54.33088538,168.37,168.27,9.32]
[1641388204718,54.33088538,168.37,168.31,0.28752489]
[1641388209023,81.73088538,168.37,168.31,0.28752489]
[1641388211430,81.0,168.36,168.24,9.06]
[1641388211628,0.06,168.35,168.24,9.06]
[1641388212228,24.8709,168.35,168.24,9.06]
[1641388212429,25.3709,168.35,168.24,9.06]
[1641388212829,25.3709,168.35,168.24,0.5]
[1641388213227,25.3709,168.35,168.21,9.06]
[1641388213428,33.9309,168.35,168.21,9.06]
[1641388213628,61.3309,168.35,168.21,9.06]
[1641388213828,61.3309,168.35,168.21,9.32]
[1641388214528,61.3309,168.35,168.21,8.56]
[1641388214728,63.06936154,168.35,168.16,10.03846154]
[1641388214932,63.06936154,168.35,168.16,8.56]
[1641388215328,69.28036154,168.35,168.16,8.56]
[1641388215928,26.49210302,168.32,168.16,9.06]
[1641388216129,2.59326497,168.3,168.16,9.06]
[1641388216328,24.4043,168.29,168.16,0.5]
[1641388216532,23.53866678,168.28,168.16,0.5]
[1641388216729,23.53866678,168.28,168.12,8.56]
[1641388216930,33.233,168.27,168.12,9.06]
[1641388217329,33.733,168.27,168.12,9.06]
[1641388218058,33.733,168.27,168.12,9.32]
[1641388218456,33.733,168.27,168.12,9.06]
[1641388218756,33.993,168.27,168.12,0.5]
[1641388218955,33.993,168.27,168.1,1.97846154]
[1641388219155,33.993,168.27,168.1,1.47846154]
[1641388219358,33.993,168.27,168.1,1.97846154]
[1641388219758,33.993,168.27,168.1,2.23846154]
[1641388221061,33.993,168.27,168.1,0.76]
[1641388221362,33.993,168.27,168.1,0.26]
[1641388221560,33.733,168.27,168.1,1.47846154]
[1641388221760,33.733,168.27,168.1,1.73846154]
[1641388221960,33.733,168.27,168.1,2.23846154]
[1641388223561,61.393,168.27,168.1,1.97846154]
[1641388224863,61.393,168.27,168.1,0.5]
[1641388225368,61.393,168.27,168.09,9.06]
[1641388226563,61.393,168.27,168.09,10.79846154]
[1641388226765,61.133,168.27,168.09,10.79846154]
[1641388230273,61.193,168.27,168.1,0.06]
[1641388230670,61.193,168.27,168.11,1.47846154]
[1641388230869,61.193,168.27,168.11,1.97846154]
[1641388231169,61.453,168.27,168.11,0.5]
[1641388231370,61.453,168.27,168.09,9.06]
[1641388231771,61.453,168.27,168.09,10.53846154]
[1641388232169,61.453,168.27,168.09,9.12]
[1641388232369,61.193,168.27,168.1,1.47846154]
[1641388232572,61.193,168.27,168.1,1.73846154]
[1641388232768,61.193,168.27,168.1,2.23846154]
[1641388232969,61.193,168.27,168.11,1.47846154]
[1641388233368,61.193,168.27,168.11,2.23846154]
[1641388233569,61.193,168.27,168.11,0.76]
[1641388233971,77.6522,168.26,168.1,0.06]
[1641388234170,8.56,168.25,168.1,8.62]
[1641388234371,51.56423662,168.24,168.1,10.59846154]
[1641388234572,51.56423662,168.24,168.1,10.85846154]
[1641388234771,78.96423662,168.24,168.1,10.85846154]
[1641388237474,78.96423662,168.24,168.1,19.77436154]
[1641388243982,78.96423662,168.24,168.1,28.54306154]
[1641388245784,78.96423662,168.24,168.1,27.0646]
[1641388247581,78.96423662,168.24,168.1,28.54306154]
[1641388248284,78.96423662,168.24,168.1,27.0646]
[1641388249082,78.96423662,168.24,168.11,1.47846154]
[1641388249282,78.96423662,168.24,168.12,31.90904448]
[1641388249482,78.96423662,168.24,168.12,32.72904448]
[1641388249882,78.96423662,168.24,168.13,1.47846154]
[1641388250086,78.96423662,168.24,168.13,1.73846154]
[1641388250288,78.96423662,168.24,168.13,2.23846154]
[1641388251089,78.96423662,168.24,168.14,8.56]
[1641388251387,78.96423662,168.24,168.14,9.06]
[1641388251587,78.96423662,168.24,168.14,9.32]
[1641388253990,78.96423662,168.24,168.15,1.47846154]
[1641388254391,78.96423662,168.24,168.15,0.5]
[1641388254994,78.96423662,168.24,168.11,9.06]
[1641388255392,78.96423662,168.24,168.11,9.32]
[1641388255592,78.96423662,168.24,168.11,10.79846154]
[1641388256795,78.96423662,168.24,168.11,9.32]
[1641388258398,78.96423662,168.24,168.11,8.82]
[1641388259417,79.46423662,168.24,168.11,8.82]
[1641388259618,79.46423662,168.24,168.11,8.56]
[1641388259816,79.46423662,168.24,168.11,9.06]
[1641388260418,79.72423662,168.24,168.11,9.06]
[1641388260617,0.06,168.23,168.11,9.06]
[1641388261020,27.46,168.23,168.11,9.06]
[1641388261221,36.02,168.23,168.11,0.5]
[1641388261517,36.78,168.23,168.07,9.06]
[1641388261717,23.6255,168.22,168.07,9.32]
[1641388261920,24.1255,168.22,168.07,9.32]
[1641388262116,77.0013,168.21,168.07,9.32]
[1641388262317,27.80219866,168.2,168.07,9.32]
[1641388262518,52.25299866,168.2,168.07,9.32]
[1641388262717,52.75299866,168.2,168.07,9.32]
[1641388264617,80.15299866,168.2,168.07,9.32]
[1641388266524,80.15299866,168.2,168.07,9.06]
[1641388266723,2.47338103,168.18,168.07,0.5]
[1641388266922,2.97338103,168.18,168.03,1.97846154]
[1641388267121,24.5677,168.17,168.02,18.71124992]
[1641388267620,47.6159,168.17,168.02,18.71124992]
[1641388268023,75.2759,168.17,168.02,18.71124992]
[1641388268824,83.8359,168.17,168.02,18.71124992]
[1641388269428,83.8359,168.17,168.02,9.06]
[1641388270326,83.8359,168.17,168.02,0.5]
[1641388270526,85.31436154,168.17,168.02,0.5]
[1641388270824,85.31436154,168.17,167.98,20.44971146]
[1641388276532,85.31436154,168.17,167.72,29.74]
[1641388276533,81.0,168.16,167.72,29.74]
[1641388276733,68.13,168.15,167.94,9.65124992]
[1641388276931,149.38486154,168.15,167.95,8.56]
[1641388277132,174.11556154,168.15,167.95,8.56]
[1641388277333,1.47846154,168.14,167.95,8.56]
[1641388277534,32.04787078,168.13,167.95,8.56]
[1641388277733,2.4812041,168.12,167.95,8.56]
[1641388277934,8.56,168.11,167.95,8.56]
[1641388278133,56.2053,168.11,167.95,8.56]
[1641388278435,56.9653,168.11,167.95,9.06]
[1641388278633,26.96562743,168.09,167.95,9.06]
[1641388278833,36.02562743,168.09,167.95,9.06]
[1641388279034,23.8569,168.08,167.95,9.06]
[1641388279533,51.7569,168.08,167.95,9.06]
[1641388279733,51.2569,168.08,167.95,9.06]
[1641388279933,51.2569,168.08,167.95,9.12]
[1641388280234,51.2569,168.08,167.95,9.38]
[1641388284036,51.2569,168.08,167.95,9.12]
[1641388284237,51.2569,168.08,167.95,9.06]
[1641388285437,51.2569,168.08,167.95,9.32]
[1641388285639,51.2569,168.08,167.95,9.38]
[1641388286039,51.2569,168.08,167.96,23.59363505]
[1641388286239,27.4,168.08,167.97,8.62]
[1641388286440,54.36562743,168.09,167.97,9.12]
[1641388286639,54.36562743,168.09,167.97,9.38]
[1641388289940,54.36562743,168.09,167.97,18.3022]
[1641388290141,54.36562743,168.09,167.97,10.85846154]
[1641388291844,54.36562743,168.09,167.98,8.9217]
[1641388292046,54.36562743,168.09,167.99,8.62]
[1641388292443,54.36562743,168.09,167.99,9.38]
[1641388296746,54.36562743,168.09,167.99,10.85846154]
[1641388296947,54.36562743,168.09,167.99,9.38]
[1641388299448,54.36562743,168.09,167.99,9.32]
[1641388299651,54.36562743,168.09,168.0,0.06]
[1641388299851,54.36562743,168.09,168.0,8.62]
[1641388300087,54.36562743,168.09,168.0,8.88]
[1641388300386,54.36562743,168.09,168.0,9.38]
[1641388300587,54.36562743,168.09,168.0,9.32]
[1641388300788,54.36562743,168.09,168.01,0.06]
[1641388311326,24.6695,168.08,168.01,0.06]
[1641388314327,54.36562743,168.09,168.01,0.06]
[1641388317431,24.7653,168.08,168.01,0.06]
[1641388318932,52.1653,168.08,168.01,0.06]
[1641388320035,27.4,168.08,168.01,0.06]
[1641388320633,54.36562743,168.09,168.01,0.06]
[1641388321232,24.6539,168.08,168.01,0.06]
[1641388321633,52.0539,168.08,168.01,0.06]
[1641388325341,52.0539,168.08,168.01,24.18813733]
[1641388325536,27.4,168.08,168.02,8.56]
[1641388325936,29.8812041,168.12,168.02,9.32]
[1641388326136,29.8812041,168.12,168.02,10.79846154]
[1641388326336,27.4,168.12,168.02,10.79846154]
[1641388326541,82.65954479,168.14,168.02,10.79846154]
[1641388327238,82.65954479,168.14,168.03,0.06]
[1641388327438,2.46442434,168.13,168.04,8.56]
[1641388327641,2.46442434,168.13,168.05,0.06]
[1641388327839,2.46442434,168.13,168.06,8.56]
[1641388328138,2.46442434,168.13,168.06,8.82]
[1641388328341,2.46442434,168.13,168.06,9.32]
[1641388329141,29.86442434,168.13,168.06,9.32]
[1641388333045,29.86442434,168.13,168.07,0.06]
[1641388333243,29.86442434,168.13,168.07,8.62]
[1641388333443,29.86442434,168.13,168.07,9.12]
[1641388333643,29.86442434,168.13,168.07,9.38]
[1641388334142,29.86442434,168.13,168.07,9.32]
[1641388334344,29.86442434,168.13,168.07,9.06]
[1641388336246,29.86442434,168.13,168.07,9.32]
[1641388337847,29.86442434,168.13,168.07,9.06]
[1641388338245,29.86442434,168.13,168.07,0.5]
[1641388338445,23.8371,168.12,168.03,9.06]
[1641388340352,51.2371,168.12,168.03,9.32]
[1641388341351,51.2371,168.12,168.03,9.06]
[1641388342549,51.2371,168.12,168.03,9.32]
[1641388344852,51.2371,168.12,168.04,0.06]
[1641388346957,27.4,168.12,168.04,0.06]
[1641388347558,29.86442434,168.13,168.05,8.56]
[1641388347765,27.4,168.13,168.06,25.80255266]
[1641388347967,27.4,168.13,168.06,26.56255266]
[1641388348766,27.4,168.13,168.06,0.82]
[1641388348977,29.69083555,168.13,168.06,0.06]
[1641388349876,52.70219658,168.13,168.06,0.06]
[1641388352988,24.2048,168.12,168.06,0.06]
[1641388354885,51.6048,168.12,168.06,0.06]